[Event "Early-Titled-Tuesday-Blitz-October-03-2023"]
[Site "Chess.com"]
[Date "2023.10.03"]
[Round "1"]
[White "MikeSailer"]
[Black "dcremisi"]
[Result "1/2-1/2"]
[WhiteElo "2156"]
[BlackElo "2525"]
[TimeControl "180+1"]
[EndTime "8:07:54 PDT"]
[Termination "Game drawn by repetition"]

1. d4 {[%clk 0:03:00]} 1... d5 {[%clk 0:02:57.9]} 2. Bf4 {[%clk 0:03:00.2]} 2...
Nf6 {[%clk 0:02:57.7]} 3. Nc3 {[%clk 0:02:53.6]} 3... g6 {[%clk 0:02:57.2]} 4.
Qd2 {[%clk 0:02:52.6]} 4... Bg7 {[%clk 0:02:57.1]} 5. Bh6 {[%clk 0:02:50.2]}
5... O-O {[%clk 0:02:57]} 6. Bxg7 {[%clk 0:02:49.9]} 6... Kxg7 {[%clk
0:02:57.1]} 7. O-O-O {[%clk 0:02:45.9]} 7... c6 {[%clk 0:02:56.3]} 8. f3 {[%clk
0:02:43.7]} 8... b5 {[%clk 0:02:56]} 9. e3 {[%clk 0:02:37.1]} 9... a5 {[%clk
0:02:55.6]} 10. Bd3 {[%clk 0:02:36.5]} 10... a4 {[%clk 0:02:55.7]} 11. g4 {[%clk
0:02:32]} 11... b4 {[%clk 0:02:54.9]} 12. Nce2 {[%clk 0:02:30.7]} 12... b3
{[%clk 0:02:54.7]} 13. a3 {[%clk 0:02:28.5]} 13... bxc2 {[%clk 0:02:51.5]} 14.
Bxc2 {[%clk 0:02:17.6]} 14... Qb6 {[%clk 0:02:51.1]} 15. h4 {[%clk 0:02:15.6]}
15... Nbd7 {[%clk 0:02:48.7]} 16. h5 {[%clk 0:02:14.1]} 16... Rb8 {[%clk
0:02:48.9]} 17. Bxa4 {[%clk 0:02:06]} 17... Ba6 {[%clk 0:02:47.9]} 18. Nc3
{[%clk 0:02:01.3]} 18... Rfc8 {[%clk 0:02:45.5]} 19. hxg6 {[%clk 0:01:59]} 19...
fxg6 {[%clk 0:02:42.9]} 20. g5 {[%clk 0:01:55]} 20... Nh5 {[%clk 0:02:40.7]} 21.
Rxh5 {[%clk 0:01:54.3]} 21... gxh5 {[%clk 0:02:40.8]} 22. Nh3 {[%clk 0:01:51.8]}
22... Bb5 {[%clk 0:02:29.1]} 23. Nf4 {[%clk 0:01:21.3]} 23... Bxa4 {[%clk
0:02:27.6]} 24. Nxh5+ {[%clk 0:01:14.6]} 24... Kh8 {[%clk 0:02:27.2]} 25. Nxa4
{[%clk 0:01:13.4]} 25... Qb3 {[%clk 0:02:26.8]} 26. Nc5 {[%clk 0:01:07.3]} 26...
Nxc5 {[%clk 0:02:13.2]} 27. dxc5 {[%clk 0:01:07.7]} 27... Qc4+ {[%clk
0:02:11.8]} 28. Kb1 {[%clk 0:01:07.9]} 28... Qxc5 {[%clk 0:02:08.5]} 29. g6
{[%clk 0:00:59.3]} 29... Qd6 {[%clk 0:02:01.7]} 30. Nf4 {[%clk 0:00:59.2]} 30...
e5 {[%clk 0:01:58.9]} 31. Rh1 {[%clk 0:00:49.9]} 31... Qxa3 {[%clk 0:01:33]} 32.
Rxh7+ {[%clk 0:00:45.2]} 32... Kg8 {[%clk 0:01:33.1]} 33. Qh2 {[%clk 0:00:38.2]}
33... Rxb2+ {[%clk 0:01:25.3]} 34. Qxb2 {[%clk 0:00:38]} 34... Qxb2+ {[%clk
0:01:24.4]} 35. Kxb2 {[%clk 0:00:38]} 35... exf4 {[%clk 0:01:24.5]} 36. exf4
{[%clk 0:00:38.5]} 36... Rf8 {[%clk 0:01:24.4]} 37. Rh4 {[%clk 0:00:32.2]} 37...
Kg7 {[%clk 0:01:23.2]} 38. Rg4 {[%clk 0:00:31.9]} 38... d4 {[%clk 0:01:09.5]}
39. Kb3 {[%clk 0:00:31.7]} 39... c5 {[%clk 0:01:08.8]} 40. Kc4 {[%clk
0:00:32.4]} 40... Rf5 {[%clk 0:01:08.5]} 41. Rg5 {[%clk 0:00:29.3]} 41... Rxg5
{[%clk 0:01:05.8]} 42. fxg5 {[%clk 0:00:30.2]} 42... Kxg6 {[%clk 0:01:06.2]} 43.
f4 {[%clk 0:00:31.1]} 43... Kf5 {[%clk 0:00:53.8]} 44. Kd3 {[%clk 0:00:32]}
44... Kg6 {[%clk 0:00:49.7]} 45. Ke4 {[%clk 0:00:32.6]} 45... Kh5 {[%clk
0:00:36.7]} 46. Kd3 {[%clk 0:00:33.1]} 46... Kg6 {[%clk 0:00:35.6]} 47. Ke4
{[%clk 0:00:33.9]} 47... Kg7 {[%clk 0:00:24.1]} 48. f5 {[%clk 0:00:32.8]} 48...
Kf7 {[%clk 0:00:24.1]} 49. f6 {[%clk 0:00:27.4]} 49... Ke6 {[%clk 0:00:16.8]}
50. Kd3 {[%clk 0:00:25.6]} 50... Kf7 {[%clk 0:00:15.5]} 51. Kc4 {[%clk
0:00:23.3]} 51... Ke6 {[%clk 0:00:15]} 52. Kd3 {[%clk 0:00:24.2]} 52... Kf7
{[%clk 0:00:15]} 53. Ke4 {[%clk 0:00:24.9]} 53... Ke6 {[%clk 0:00:14.7]} 54. Kd3
{[%clk 0:00:25.8]} 1/2-1/2

[Event "Early-Titled-Tuesday-Blitz-October-03-2023"]
[Site "Chess.com"]
[Date "2023.10.03"]
[Round "1"]
[White "erugee"]
[Black "Mikhail_Golubev"]
[Result "0-1"]
[WhiteElo "2253"]
[BlackElo "2599"]
[TimeControl "180+1"]
[EndTime "8:07:55 PDT"]
[Termination "Mikhail_Golubev won on time"]

1. e4 {[%clk 0:02:58.7]} 1... c5 {[%clk 0:02:55.5]} 2. Nf3 {[%clk 0:02:58.8]}
2... d6 {[%clk 0:02:52.8]} 3. d3 {[%clk 0:02:59.5]} 3... g6 {[%clk 0:02:46.9]}
4. Nbd2 {[%clk 0:03:00.1]} 4... Bg7 {[%clk 0:02:46.9]} 5. g3 {[%clk 0:02:59.6]}
5... Nf6 {[%clk 0:02:40]} 6. Bg2 {[%clk 0:03:00.1]} 6... Nc6 {[%clk 0:02:36.8]}
7. h4 {[%clk 0:03:00.6]} 7... h6 {[%clk 0:02:29.4]} 8. O-O {[%clk 0:02:56.4]}
8... O-O {[%clk 0:02:20.5]} 9. Re1 {[%clk 0:02:56.6]} 9... e5 {[%clk 0:02:18.4]}
10. Nf1 {[%clk 0:02:54]} 10... d5 {[%clk 0:02:10.7]} 11. Qe2 {[%clk 0:02:40.3]}
11... Bg4 {[%clk 0:01:56]} 12. c3 {[%clk 0:02:38.8]} 12... dxe4 {[%clk
0:01:40.4]} 13. dxe4 {[%clk 0:02:35]} 13... Qc8 {[%clk 0:01:39.9]} 14. Ne3
{[%clk 0:02:27.5]} 14... Be6 {[%clk 0:01:37]} 15. Nc4 {[%clk 0:02:23.6]} 15...
Ne8 {[%clk 0:01:26.2]} 16. a4 {[%clk 0:02:14]} 16... b6 {[%clk 0:01:25.5]} 17.
Be3 {[%clk 0:01:58.5]} 17... Qc7 {[%clk 0:01:17.7]} 18. Red1 {[%clk 0:01:56.1]}
18... Rb8 {[%clk 0:01:06.1]} 19. Bf1 {[%clk 0:01:34.9]} 19... a6 {[%clk
0:01:01.4]} 20. Qc2 {[%clk 0:01:29.7]} 20... b5 {[%clk 0:00:55.6]} 21. axb5
{[%clk 0:01:23]} 21... axb5 {[%clk 0:00:56.5]} 22. Na3 {[%clk 0:01:07.9]} 22...
Na7 {[%clk 0:00:49.9]} 23. Nb1 {[%clk 0:00:38.3]} 23... Nc8 {[%clk 0:00:41]} 24.
Ra6 {[%clk 0:00:36.8]} 24... Ned6 {[%clk 0:00:38.4]} 25. Nbd2 {[%clk 0:00:28.2]}
25... Ne7 {[%clk 0:00:24.3]} 26. Rda1 {[%clk 0:00:27.7]} 26... Ndc8 {[%clk
0:00:18]} 27. Rxe6 {[%clk 0:00:26.4]} 27... fxe6 {[%clk 0:00:17.4]} 28. Ra6
{[%clk 0:00:24.8]} 28... Rb6 {[%clk 0:00:13.4]} 29. Ra8 {[%clk 0:00:24.1]} 29...
Rb8 {[%clk 0:00:12.9]} 30. Ra6 {[%clk 0:00:21.9]} 30... Rb6 {[%clk 0:00:13]} 31.
Ra8 {[%clk 0:00:22.1]} 31... Rd8 {[%clk 0:00:13.4]} 32. Nb3 {[%clk 0:00:19.7]}
32... Rb8 {[%clk 0:00:09.6]} 33. Rxb8 {[%clk 0:00:18.8]} 33... Qxb8 {[%clk
0:00:09.5]} 34. Nxc5 {[%clk 0:00:19.5]} 34... Nc6 {[%clk 0:00:08.5]} 35. Nxe6
{[%clk 0:00:19.2]} 35... Rd6 {[%clk 0:00:07.1]} 36. Nxg7 {[%clk 0:00:19.7]}
36... Kxg7 {[%clk 0:00:07.4]} 37. Qb3 {[%clk 0:00:18.4]} 37... N8e7 {[%clk
0:00:06.8]} 38. Bc5 {[%clk 0:00:16.8]} 38... Rd8 {[%clk 0:00:06.7]} 39. Bxe7
{[%clk 0:00:16]} 39... Nxe7 {[%clk 0:00:07.6]} 40. Bxb5 {[%clk 0:00:15]} 40...
Qd6 {[%clk 0:00:07.2]} 41. Kg2 {[%clk 0:00:13.8]} 41... Rf8 {[%clk 0:00:07.2]}
42. Be2 {[%clk 0:00:11.8]} 42... Qf6 {[%clk 0:00:07.2]} 43. Qb7 {[%clk
0:00:10.5]} 43... g5 {[%clk 0:00:07.3]} 44. hxg5 {[%clk 0:00:07.8]} 44... hxg5
{[%clk 0:00:08.2]} 45. g4 {[%clk 0:00:07.9]} 45... Kh8 {[%clk 0:00:08.2]} 46.
Qc7 {[%clk 0:00:08.2]} 46... Ng6 {[%clk 0:00:08]} 47. Qc5 {[%clk 0:00:02.9]}
47... Nf4+ {[%clk 0:00:06.7]} 48. Kf1 {[%clk 0:00:03.5]} 48... Nxe2 {[%clk
0:00:07.3]} 49. Qxe5 {[%clk 0:00:03.3]} 49... Qxe5 {[%clk 0:00:07.5]} 50. Nxe5
{[%clk 0:00:03.5]} 50... Nc1 {[%clk 0:00:07.5]} 51. Ng6+ {[%clk 0:00:02.6]}
51... Kg7 {[%clk 0:00:08]} 52. Nxf8 {[%clk 0:00:03]} 52... Kxf8 {[%clk
0:00:08.9]} 0-1

[Event "Early-Titled-Tuesday-Blitz-October-03-2023"]
[Site "Chess.com"]
[Date "2023.10.03"]
[Round "1"]
[White "Mr_Lion22"]
[Black "GroovyKettle"]
[Result "0-1"]
[WhiteElo "2506"]
[BlackElo "2970"]
[TimeControl "180+1"]
[EndTime "8:07:59 PDT"]
[Termination "GroovyKettle won by resignation"]

1. d4 {[%clk 0:03:00.5]} 1... Nf6 {[%clk 0:02:58.5]} 2. c4 {[%clk 0:03:00.8]}
2... e6 {[%clk 0:02:57.6]} 3. Nc3 {[%clk 0:03:01.1]} 3... Bb4 {[%clk 0:02:56.6]}
4. f3 {[%clk 0:03:01.2]} 4... d5 {[%clk 0:02:49.5]} 5. a3 {[%clk 0:03:00.8]}
5... Be7 {[%clk 0:02:43.7]} 6. e4 {[%clk 0:02:59.2]} 6... dxe4 {[%clk
0:02:42.9]} 7. fxe4 {[%clk 0:03:00.1]} 7... O-O {[%clk 0:02:43]} 8. e5 {[%clk
0:02:46.7]} 8... Ne8 {[%clk 0:02:41.3]} 9. Nf3 {[%clk 0:02:46.1]} 9... b6 {[%clk
0:02:35.3]} 10. Bd3 {[%clk 0:02:42.3]} 10... Bb7 {[%clk 0:02:35.2]} 11. Be3
{[%clk 0:02:16.1]} 11... Nd7 {[%clk 0:02:25.3]} 12. O-O {[%clk 0:02:14.1]} 12...
g6 {[%clk 0:02:02.6]} 13. Ne4 {[%clk 0:01:56.6]} 13... c5 {[%clk 0:01:55.5]} 14.
Bc2 {[%clk 0:01:33.5]} 14... cxd4 {[%clk 0:01:53.2]} 15. Qxd4 {[%clk 0:01:34.4]}
15... Ng7 {[%clk 0:01:39.2]} 16. Nd6 {[%clk 0:01:26.8]} 16... Bxf3 {[%clk
0:01:34.1]} 17. Rxf3 {[%clk 0:01:26.3]} 17... Nxe5 {[%clk 0:01:34.6]} 18. Qxe5
{[%clk 0:01:22.7]} 18... Bxd6 {[%clk 0:01:33.6]} 19. Qc3 {[%clk 0:01:18.3]}
19... Bc5 {[%clk 0:01:17.2]} 20. Rd1 {[%clk 0:01:07.6]} 20... Qc7 {[%clk
0:01:12.5]} 21. Kh1 {[%clk 0:00:26.7]} 21... Bxe3 {[%clk 0:01:11.2]} 22. Rxe3
{[%clk 0:00:27.6]} 22... Rad8 {[%clk 0:01:08.2]} 23. Red3 {[%clk 0:00:26]} 23...
Rxd3 {[%clk 0:01:05.2]} 24. Qxd3 {[%clk 0:00:26.9]} 24... Rc8 {[%clk 0:01:01.4]}
25. b3 {[%clk 0:00:22.7]} 25... Nf5 {[%clk 0:00:55.1]} 26. g4 {[%clk 0:00:20.2]}
26... Qc6+ {[%clk 0:00:44.1]} 27. Kg1 {[%clk 0:00:20.4]} 27... Qc5+ {[%clk
0:00:35.9]} 28. Kh1 {[%clk 0:00:18.8]} 28... Ne3 {[%clk 0:00:36.1]} 29. Rc1
{[%clk 0:00:10.2]} 29... Nxg4 {[%clk 0:00:31]} 30. Qd7 {[%clk 0:00:07.9]} 30...
Rc7 {[%clk 0:00:24.4]} 31. Qd8+ {[%clk 0:00:07.3]} 31... Kg7 {[%clk 0:00:24.9]}
32. h3 {[%clk 0:00:03.4]} 32... Qe3 {[%clk 0:00:18.9]} 33. hxg4 {[%clk
0:00:01.2]} 33... Qxc1+ {[%clk 0:00:18.9]} 34. Bd1 {[%clk 0:00:02]} 34... Rc5
{[%clk 0:00:18]} 35. Qd4+ {[%clk 0:00:02.3]} 35... e5 {[%clk 0:00:18.2]} 36. Qd3
{[%clk 0:00:02.3]} 36... Qxa3 {[%clk 0:00:16.5]} 37. g5 {[%clk 0:00:01.6]} 37...
Qc1 {[%clk 0:00:16.4]} 38. Qd8 {[%clk 0:00:02.2]} 38... Qf4 {[%clk 0:00:15.2]}
39. Bg4 {[%clk 0:00:02.3]} 39... h6 {[%clk 0:00:12.9]} 40. gxh6+ {[%clk
0:00:01.5]} 40... Qxh6+ {[%clk 0:00:13.8]} 41. Kg2 {[%clk 0:00:01.3]} 41... Qf4
{[%clk 0:00:14.1]} 42. Bf3 {[%clk 0:00:01.1]} 42... e4 {[%clk 0:00:14.5]} 43.
Qd4+ {[%clk 0:00:01.6]} 43... Re5 {[%clk 0:00:15.2]} 44. Be2 {[%clk 0:00:01.7]}
44... Qf6 {[%clk 0:00:15.1]} 45. Qe3 {[%clk 0:00:01.6]} 45... Rg5+ {[%clk
0:00:15.2]} 46. Kh3 {[%clk 0:00:02.3]} 46... Qf5+ {[%clk 0:00:15.5]} 47. Kh4
{[%clk 0:00:02]} 47... Rh5+ {[%clk 0:00:13.7]} 48. Bxh5 {[%clk 0:00:02]} 48...
Qxh5+ {[%clk 0:00:14.6]} 49. Kg3 {[%clk 0:00:02.9]} 49... Qf3+ {[%clk
0:00:15.5]} 50. Qxf3 {[%clk 0:00:03.4]} 50... exf3 {[%clk 0:00:16.4]} 51. Kxf3
{[%clk 0:00:04.3]} 51... Kf6 {[%clk 0:00:17]} 52. b4 {[%clk 0:00:04.9]} 52...
Ke6 {[%clk 0:00:17.2]} 53. Ke4 {[%clk 0:00:05.8]} 53... Kd6 {[%clk 0:00:17.3]}
0-1

[Event "Early-Titled-Tuesday-Blitz-October-03-2023"]
[Site "Chess.com"]
[Date "2023.10.03"]
[Round "1"]
[White "CrushingKings"]
[Black "JimDiGrease"]
[Result "0-1"]
[WhiteElo "2502"]
[BlackElo "2917"]
[TimeControl "180+1"]
[EndTime "8:07:59 PDT"]
[Termination "JimDiGrease won by resignation"]

1. Nf3 {[%clk 0:03:00.9]} 1... d5 {[%clk 0:02:57.8]} 2. g3 {[%clk 0:03:00.3]}
2... Nf6 {[%clk 0:02:58.3]} 3. Bg2 {[%clk 0:03:00.4]} 3... c5 {[%clk 0:02:59]}
4. O-O {[%clk 0:03:00.7]} 4... e6 {[%clk 0:02:59.7]} 5. d4 {[%clk 0:03:00.8]}
5... cxd4 {[%clk 0:03:00.6]} 6. Nxd4 {[%clk 0:03:00.7]} 6... e5 {[%clk
0:03:01.1]} 7. Nb3 {[%clk 0:03:00.4]} 7... Be6 {[%clk 0:03:01]} 8. c4 {[%clk
0:02:52.1]} 8... Nc6 {[%clk 0:03:00.4]} 9. cxd5 {[%clk 0:02:50.2]} 9... Nxd5
{[%clk 0:03:00.3]} 10. Bd2 {[%clk 0:02:33.9]} 10... Be7 {[%clk 0:02:46.8]} 11.
Nc3 {[%clk 0:02:33.4]} 11... Ndb4 {[%clk 0:02:25.4]} 12. Ne4 {[%clk 0:02:27.4]}
12... b6 {[%clk 0:02:21.7]} 13. a3 {[%clk 0:02:03.2]} 13... Nd5 {[%clk 0:02:21]}
14. Rc1 {[%clk 0:02:03]} 14... Rc8 {[%clk 0:02:20.3]} 15. Ng5 {[%clk 0:01:49.5]}
15... Bxg5 {[%clk 0:02:07.2]} 16. Bxg5 {[%clk 0:01:49.4]} 16... Qd7 {[%clk
0:01:55.1]} 17. Qd3 {[%clk 0:01:40.3]} 17... f6 {[%clk 0:01:26.8]} 18. Rfd1
{[%clk 0:01:34.9]} 18... Nce7 {[%clk 0:01:19.2]} 19. Rxc8+ {[%clk 0:00:32.8]}
19... Qxc8 {[%clk 0:01:18.9]} 20. Bc1 {[%clk 0:00:33]} 20... O-O {[%clk
0:01:03.8]} 21. e4 {[%clk 0:00:32.9]} 21... Nc7 {[%clk 0:00:58.1]} 22. f4 {[%clk
0:00:33.7]} 22... Nc6 {[%clk 0:00:53.9]} 23. Be3 {[%clk 0:00:29.1]} 23... Rd8
{[%clk 0:00:23.5]} 24. Qc2 {[%clk 0:00:29.1]} 24... Rxd1+ {[%clk 0:00:22.2]} 25.
Qxd1 {[%clk 0:00:30]} 25... Qe8 {[%clk 0:00:21.7]} 26. f5 {[%clk 0:00:25]} 26...
Bf7 {[%clk 0:00:16.2]} 27. g4 {[%clk 0:00:23.8]} 27... Nb5 {[%clk 0:00:15.3]}
28. Bf1 {[%clk 0:00:20.6]} 28... Nbd4 {[%clk 0:00:12.6]} 29. Nxd4 {[%clk
0:00:20.1]} 29... exd4 {[%clk 0:00:13.5]} 30. Bxd4 {[%clk 0:00:19.4]} 30... Qd8
{[%clk 0:00:11.7]} 31. e5 {[%clk 0:00:07.8]} 31... fxe5 {[%clk 0:00:08.5]} 32.
Qa4 {[%clk 0:00:04.8]} 32... Qxd4+ {[%clk 0:00:06.3]} 33. Qxd4 {[%clk
0:00:04.4]} 33... Nxd4 {[%clk 0:00:04.6]} 34. Kf2 {[%clk 0:00:05.3]} 34... Kf8
{[%clk 0:00:01.9]} 35. Ke3 {[%clk 0:00:05.9]} 35... Ke7 {[%clk 0:00:00.9]} 36.
Ke4 {[%clk 0:00:04.6]} 36... Kd6 {[%clk 0:00:01.8]} 37. Ba6 {[%clk 0:00:04.4]}
37... Bd5+ {[%clk 0:00:02.7]} 38. Ke3 {[%clk 0:00:05.1]} 38... Nc2+ {[%clk
0:00:02.9]} 39. Kd2 {[%clk 0:00:05.1]} 39... Nd4 {[%clk 0:00:03.8]} 40. Ke3
{[%clk 0:00:05.8]} 40... Nc6 {[%clk 0:00:04.1]} 41. Bc8 {[%clk 0:00:05.4]} 41...
Ne7 {[%clk 0:00:04.5]} 42. Ba6 {[%clk 0:00:05.7]} 42... g6 {[%clk 0:00:03.8]}
43. f6 {[%clk 0:00:05.9]} 43... Nc6 {[%clk 0:00:04.3]} 44. g5 {[%clk 0:00:05.6]}
44... Nd4 {[%clk 0:00:05]} 45. Bd3 {[%clk 0:00:05.7]} 45... Nf5+ {[%clk
0:00:05.3]} 46. Bxf5 {[%clk 0:00:05.7]} 46... gxf5 {[%clk 0:00:06.2]} 47. h4
{[%clk 0:00:06.4]} 47... Ke6 {[%clk 0:00:06.8]} 48. h5 {[%clk 0:00:06.9]} 48...
f4+ {[%clk 0:00:07.5]} 49. Kf2 {[%clk 0:00:06.9]} 49... Kf5 {[%clk 0:00:08.3]}
50. g6 {[%clk 0:00:07.4]} 50... hxg6 {[%clk 0:00:09.1]} 51. h6 {[%clk 0:00:08]}
51... Kxf6 {[%clk 0:00:09.8]} 52. h7 {[%clk 0:00:08.1]} 52... Kg7 {[%clk
0:00:10.7]} 0-1

[Event "Early-Titled-Tuesday-Blitz-October-03-2023"]
[Site "Chess.com"]
[Date "2023.10.03"]
[Round "1"]
[White "WindWhistler11"]
[Black "LionTheLeon_06"]
[Result "0-1"]
[WhiteElo "2462"]
[BlackElo "2816"]
[TimeControl "180+1"]
[EndTime "8:08:02 PDT"]
[Termination "LionTheLeon_06 won by resignation"]

1. Nf3 {[%clk 0:03:00.9]} 1... Nf6 {[%clk 0:02:59.8]} 2. g3 {[%clk 0:03:00]}
2... b6 {[%clk 0:03:00]} 3. Bg2 {[%clk 0:03:00.3]} 3... Bb7 {[%clk 0:03:00.9]}
4. d3 {[%clk 0:03:00.3]} 4... d5 {[%clk 0:03:00.7]} 5. Nbd2 {[%clk 0:02:58.4]}
5... c5 {[%clk 0:03:00]} 6. O-O {[%clk 0:02:58]} 6... e6 {[%clk 0:03:00.1]} 7.
e4 {[%clk 0:02:58.2]} 7... Be7 {[%clk 0:02:59.2]} 8. c3 {[%clk 0:02:52.1]} 8...
Nc6 {[%clk 0:02:58]} 9. e5 {[%clk 0:02:48.4]} 9... Nd7 {[%clk 0:02:57.8]} 10.
Re1 {[%clk 0:02:49]} 10... O-O {[%clk 0:02:56.9]} 11. h4 {[%clk 0:02:47]} 11...
Qc7 {[%clk 0:02:56.9]} 12. Qe2 {[%clk 0:02:43]} 12... Rfc8 {[%clk 0:02:55.4]}
13. Nf1 {[%clk 0:02:41.9]} 13... b5 {[%clk 0:02:55.3]} 14. Bf4 {[%clk
0:02:42.1]} 14... Qd8 {[%clk 0:02:55.7]} 15. N1h2 {[%clk 0:02:39.3]} 15... Bf8
{[%clk 0:02:54]} 16. h5 {[%clk 0:02:37.5]} 16... h6 {[%clk 0:02:53.4]} 17. g4
{[%clk 0:02:34.2]} 17... Ne7 {[%clk 0:02:47.4]} 18. g5 {[%clk 0:02:27.3]} 18...
hxg5 {[%clk 0:02:37.4]} 19. Bxg5 {[%clk 0:02:22.6]} 19... Qc7 {[%clk 0:01:48.9]}
20. Ng4 {[%clk 0:02:05.1]} 20... Nf5 {[%clk 0:01:49]} 21. Qd2 {[%clk 0:01:56.2]}
21... b4 {[%clk 0:01:46.2]} 22. h6 {[%clk 0:01:49.7]} 22... g6 {[%clk
0:01:44.7]} 23. Nh4 {[%clk 0:01:43.3]} 23... Kh7 {[%clk 0:01:38.1]} 24. Bf6
{[%clk 0:01:28.9]} 24... bxc3 {[%clk 0:01:28.7]} 25. bxc3 {[%clk 0:01:26.8]}
25... d4 {[%clk 0:01:28.9]} 26. Bg7 {[%clk 0:00:39.7]} 26... Be7 {[%clk
0:01:23]} 27. Nxf5 {[%clk 0:00:31.5]} 27... exf5 {[%clk 0:01:23.1]} 28. Nf6+
{[%clk 0:00:28.5]} 28... Nxf6 {[%clk 0:01:20.8]} 29. exf6 {[%clk 0:00:28.7]}
29... Bd6 {[%clk 0:01:19.3]} 30. c4 {[%clk 0:00:22.6]} 30... Rab8 {[%clk
0:01:13.8]} 31. Rab1 {[%clk 0:00:22.3]} 31... Bxg2 {[%clk 0:01:13.2]} 32. Kxg2
{[%clk 0:00:23.2]} 32... Qc6+ {[%clk 0:01:11.5]} 33. f3 {[%clk 0:00:20.6]} 33...
Qc7 {[%clk 0:01:10.5]} 34. Rxb8 {[%clk 0:00:18.4]} 34... Rxb8 {[%clk 0:01:11.4]}
35. Re2 {[%clk 0:00:16.8]} 35... Bf4 {[%clk 0:01:11.1]} 36. Qe1 {[%clk
0:00:15.8]} 36... Be3 {[%clk 0:01:11.4]} 37. Qg3 {[%clk 0:00:14.6]} 37... f4
{[%clk 0:01:06.2]} 38. Qg5 {[%clk 0:00:12.9]} 38... Qc8 {[%clk 0:01:03.8]} 39.
Qd5 {[%clk 0:00:12.2]} 39... Qb7 {[%clk 0:01:00.6]} 40. Qxc5 {[%clk 0:00:11.2]}
40... Re8 {[%clk 0:00:54.8]} 41. Qb5 {[%clk 0:00:10.8]} 41... Qc8 {[%clk
0:00:53.8]} 42. Rb2 {[%clk 0:00:10]} 42... Bc1 {[%clk 0:00:50.7]} 43. Rf2 {[%clk
0:00:08.8]} 43... Re1 {[%clk 0:00:49.2]} 44. Qd5 {[%clk 0:00:08.4]} 44... Qe8
{[%clk 0:00:43.4]} 45. Qxd4 {[%clk 0:00:07.7]} 45... Be3 {[%clk 0:00:42.5]} 46.
Qe4 {[%clk 0:00:08.2]} 46... Qxe4 {[%clk 0:00:41.7]} 47. fxe4 {[%clk 0:00:08]}
47... Bxf2 {[%clk 0:00:42]} 48. Kxf2 {[%clk 0:00:08.4]} 48... Re3 {[%clk
0:00:41.3]} 49. c5 {[%clk 0:00:05.5]} 49... Rxd3 {[%clk 0:00:41.2]} 50. e5
{[%clk 0:00:06]} 50... Re3 {[%clk 0:00:38.1]} 51. Bf8 {[%clk 0:00:05]} 51...
Rxe5 {[%clk 0:00:38.1]} 52. c6 {[%clk 0:00:05.4]} 52... Re3 {[%clk 0:00:29.2]}
53. Bd6 {[%clk 0:00:03.9]} 53... Rc3 {[%clk 0:00:29.3]} 54. c7 {[%clk
0:00:04.6]} 54... g5 {[%clk 0:00:29.6]} 55. Ke2 {[%clk 0:00:04.2]} 55... Kxh6
{[%clk 0:00:29.8]} 56. Kd2 {[%clk 0:00:04.7]} 56... Rc6 {[%clk 0:00:30.4]} 57.
Be5 {[%clk 0:00:03.9]} 57... Kg6 {[%clk 0:00:30.5]} 58. Kd3 {[%clk 0:00:04]}
58... Kf5 {[%clk 0:00:31]} 59. Kd4 {[%clk 0:00:04.7]} 59... Ke6 {[%clk
0:00:31.3]} 60. Ke4 {[%clk 0:00:04.4]} 60... f3 {[%clk 0:00:31.1]} 61. Bg3
{[%clk 0:00:03.7]} 61... f2 {[%clk 0:00:31.5]} 62. Bxf2 {[%clk 0:00:03.9]} 62...
Rxc7 {[%clk 0:00:31.6]} 0-1